[Event "*** Titled Tuesday 3|2 Blitz"]
[Site "Chess.com"]
[Date "2017.03.07"]
[Round "1"]
[White "Abdodi"]
[Black "mwpchess"]
[Result "1-0"]
[WhiteElo "2012"]
[BlackElo "2417"]
[TimeControl "180+2"]
[EndTime "13:09:30 PST"]
[Termination "Abdodi won on time"]

1. d4 {[%clk 0:03:01.9]} 1... Nf6 {[%clk 0:03:00.1]} 2. c4 {[%clk 0:02:59.1]}
2... e6 {[%clk 0:03:00]} 3. Nc3 {[%clk 0:02:56.6]} 3... Bb4 {[%clk 0:03:00]} 4.
f3 {[%clk 0:02:56.1]} 4... c5 {[%clk 0:02:58.3]} 5. d5 {[%clk 0:02:56.1]} 5...
O-O {[%clk 0:02:58]} 6. e4 {[%clk 0:02:55.3]} 6... d6 {[%clk 0:02:53.3]} 7. Bg5
{[%clk 0:02:46]} 7... h6 {[%clk 0:02:37.6]} 8. Bh4 {[%clk 0:02:44]} 8... Re8
{[%clk 0:02:30.1]} 9. dxe6 {[%clk 0:02:32.6]} 9... Bxe6 {[%clk 0:02:14.9]} 10.
Bd3 {[%clk 0:02:31.8]} 10... Nbd7 {[%clk 0:02:01.4]} 11. Ne2 {[%clk 0:02:31.1]}
11... Ne5 {[%clk 0:01:45.2]} 12. b3 {[%clk 0:02:30.8]} 12... g5 {[%clk
0:01:32.5]} 13. Bg3 {[%clk 0:02:27]} 13... Qa5 {[%clk 0:01:32.1]} 14. Qc2 {[%clk
0:02:11.9]} 14... Nh5 {[%clk 0:01:19.4]} 15. O-O {[%clk 0:02:03.5]} 15... Nxg3
{[%clk 0:01:18]} 16. hxg3 {[%clk 0:02:02.9]} 16... Bxc3 {[%clk 0:00:59.1]} 17.
Nxc3 {[%clk 0:02:00.5]} 17... Nc6 {[%clk 0:00:59.4]} 18. Nd5 {[%clk 0:01:47.5]}
18... Bxd5 {[%clk 0:00:58.3]} 19. exd5 {[%clk 0:01:47.5]} 19... Nd4 {[%clk
0:00:56.8]} 20. Qd1 {[%clk 0:01:46.3]} 20... Qd8 {[%clk 0:00:51.3]} 21. f4
{[%clk 0:01:43]} 21... Qe7 {[%clk 0:00:51.7]} 22. Re1 {[%clk 0:01:32.4]} 22...
Qf6 {[%clk 0:00:46.5]} 23. Qd2 {[%clk 0:01:16]} 23... Kf8 {[%clk 0:00:44.1]} 24.
Kf2 {[%clk 0:01:11.2]} 24... g4 {[%clk 0:00:40.9]} 25. Rxe8+ {[%clk 0:01:04.1]}
25... Rxe8 {[%clk 0:00:38.2]} 26. Re1 {[%clk 0:01:04.5]} 26... Rxe1 {[%clk
0:00:37.5]} 27. Qxe1 {[%clk 0:01:05.6]} 27... b6 {[%clk 0:00:37.6]} 28. Qe4
{[%clk 0:00:55.9]} 28... Qg7 {[%clk 0:00:18.8]} 29. Qe1 {[%clk 0:00:47]} 29...
f5 {[%clk 0:00:18.6]} 30. Qh1 {[%clk 0:00:44.6]} 30... Qf6 {[%clk 0:00:17.5]}
31. Qc1 {[%clk 0:00:39.4]} 31... h5 {[%clk 0:00:11.4]} 32. Qh1 {[%clk
0:00:35.1]} 32... Qg6 {[%clk 0:00:07]} 33. Qh4 {[%clk 0:00:35.2]} 33... Ke8
{[%clk 0:00:07.5]} 34. Qh1 {[%clk 0:00:31.1]} 34... a6 {[%clk 0:00:07.8]} 35.
Qe1+ {[%clk 0:00:31]} 35... Kd7 {[%clk 0:00:08.3]} 36. Qc1 {[%clk 0:00:30.1]}
36... Qe8 {[%clk 0:00:08.3]} 37. Qa3 {[%clk 0:00:26.6]} 37... a5 {[%clk
0:00:07.6]} 38. Qc1 {[%clk 0:00:22.5]} 38... Kc7 {[%clk 0:00:07.8]} 39. Qh1
{[%clk 0:00:21.8]} 39... Kb7 {[%clk 0:00:07.4]} 40. Qh4 {[%clk 0:00:21.8]} 40...
Qf7 {[%clk 0:00:05.7]} 41. Qg5 {[%clk 0:00:22.3]} 41... Ka7 {[%clk 0:00:04.7]}
42. Qd8 {[%clk 0:00:22.3]} 42... Kb7 {[%clk 0:00:04.6]} 43. Qxd6 {[%clk
0:00:23.2]} 43... Qe8 {[%clk 0:00:03.7]} 44. Qe5 {[%clk 0:00:22]} 44... Qf7
{[%clk 0:00:02.1]} 45. Qh8 {[%clk 0:00:18.9]} 45... Kc7 {[%clk 0:00:02.2]} 46.
Qa8 {[%clk 0:00:17.6]} 1-0

[Event "*** Titled Tuesday 3|2 Blitz"]
[Site "Chess.com"]
[Date "2017.03.07"]
[Round "1"]
[White "GMBenjaminBok"]
[Black "StellarChessPro"]
[Result "1-0"]
[WhiteElo "2655"]
[BlackElo "2353"]
[TimeControl "180+2"]
[EndTime "13:09:51 PST"]
[Termination "GMBenjaminBok won by resignation"]

1. e4 {[%clk 0:03:02]} 1... c6 {[%clk 0:03:00]} 2. d4 {[%clk 0:03:02]} 2... d5
{[%clk 0:03:01.2]} 3. e5 {[%clk 0:03:03.6]} 3... Bf5 {[%clk 0:03:01.9]} 4. Nf3
{[%clk 0:03:05.1]} 4... e6 {[%clk 0:03:02.7]} 5. Be2 {[%clk 0:03:06.7]} 5... Nd7
{[%clk 0:03:01.8]} 6. O-O {[%clk 0:03:07.7]} 6... h6 {[%clk 0:03:02.6]} 7. c3
{[%clk 0:03:03.5]} 7... Ne7 {[%clk 0:03:03.8]} 8. Nbd2 {[%clk 0:03:03.8]} 8...
Bh7 {[%clk 0:03:04.9]} 9. b4 {[%clk 0:03:03.6]} 9... Ng6 {[%clk 0:03:04.9]} 10.
Nb3 {[%clk 0:03:04.3]} 10... Be7 {[%clk 0:03:05.1]} 11. Bd3 {[%clk 0:03:05.4]}
11... O-O {[%clk 0:03:05.4]} 12. Qc2 {[%clk 0:03:03.1]} 12... Re8 {[%clk
0:03:03]} 13. Bd2 {[%clk 0:03:03.3]} 13... Ngf8 {[%clk 0:03:03.8]} 14. a4 {[%clk
0:02:48.2]} 14... Bxd3 {[%clk 0:03:02.9]} 15. Qxd3 {[%clk 0:02:48.9]} 15... b6
{[%clk 0:03:00.6]} 16. c4 {[%clk 0:02:39.9]} 16... Rc8 {[%clk 0:02:47.8]} 17. c5
{[%clk 0:02:30.8]} 17... bxc5 {[%clk 0:02:45.5]} 18. bxc5 {[%clk 0:02:30.3]}
18... f6 {[%clk 0:02:45.7]} 19. Ba5 {[%clk 0:02:29.7]} 19... Rc7 {[%clk
0:02:43.2]} 20. Rfe1 {[%clk 0:02:23]} 20... Qc8 {[%clk 0:02:43.5]} 21. Bxc7
{[%clk 0:02:22.9]} 21... Qxc7 {[%clk 0:02:45.4]} 22. Rab1 {[%clk 0:02:19.3]}
22... fxe5 {[%clk 0:02:45.2]} 23. Nxe5 {[%clk 0:02:19.7]} 23... Nxe5 {[%clk
0:02:44.7]} 24. Rxe5 {[%clk 0:02:20.9]} 24... Bf6 {[%clk 0:02:45.4]} 25. Re2
{[%clk 0:02:21.6]} 25... Rb8 {[%clk 0:02:38.9]} 26. Qc3 {[%clk 0:01:54.6]} 26...
Ng6 {[%clk 0:02:27.3]} 27. g3 {[%clk 0:01:54.2]} 27... Qf7 {[%clk 0:02:23.6]}
28. Rbe1 {[%clk 0:01:51]} 28... Nf8 {[%clk 0:02:15.7]} 29. Nd2 {[%clk
0:01:48.9]} 29... a5 {[%clk 0:02:10.7]} 30. Rb1 {[%clk 0:01:47.7]} 30... Rxb1+
{[%clk 0:02:07.6]} 31. Nxb1 {[%clk 0:01:49.6]} 31... Qb7 {[%clk 0:02:09.1]} 32.
Nd2 {[%clk 0:01:46]} 32... Qa6 {[%clk 0:02:10]} 33. Re1 {[%clk 0:01:45.4]} 33...
Kf7 {[%clk 0:02:11]} 34. Nb3 {[%clk 0:01:42.9]} 34... Bd8 {[%clk 0:02:08.1]} 35.
Kg2 {[%clk 0:01:38.3]} 35... Kg8 {[%clk 0:02:06.1]} 36. Nc1 {[%clk 0:01:29.7]}
36... Bc7 {[%clk 0:02:00.3]} 37. Nd3 {[%clk 0:01:29.4]} 37... Qb7 {[%clk
0:01:50.6]} 38. Ne5 {[%clk 0:01:18.5]} 38... Bd8 {[%clk 0:01:34.4]} 39. Re2
{[%clk 0:01:12.4]} 39... Bc7 {[%clk 0:01:31.3]} 40. Rb2 {[%clk 0:01:12.4]} 40...
Qa6 {[%clk 0:01:28.6]} 41. Qd3 {[%clk 0:01:11.3]} 41... Qa8 {[%clk 0:01:29.8]}
42. Ng6 {[%clk 0:01:02]} 42... Nd7 {[%clk 0:01:12.5]} 43. Re2 {[%clk 0:01:01.3]}
43... Qe8 {[%clk 0:01:06.3]} 44. Nh4 {[%clk 0:00:57.1]} 44... e5 {[%clk
0:01:05.1]} 45. dxe5 {[%clk 0:00:54.1]} 45... Qf8 {[%clk 0:01:02.3]} 46. Ng6
{[%clk 0:00:47.1]} 46... Qe8 {[%clk 0:00:50.3]} 47. e6 {[%clk 0:00:45.8]} 47...
Nxc5 {[%clk 0:00:49.5]} 48. Qf5 {[%clk 0:00:46.4]} 48... Bd6 {[%clk 0:00:47]}
49. e7 {[%clk 0:00:46.7]} 49... d4 {[%clk 0:00:38.6]} 50. h4 {[%clk 0:00:42.9]}
50... d3 {[%clk 0:00:39.7]} 51. Rd2 {[%clk 0:00:42.4]} 51... Kh7 {[%clk
0:00:31.8]} 52. h5 {[%clk 0:00:29.5]} 52... Kg8 {[%clk 0:00:32.9]} 53. Rd1
{[%clk 0:00:24.7]} 53... Bxe7 {[%clk 0:00:24.6]} 54. Re1 {[%clk 0:00:24.9]}
54... d2 {[%clk 0:00:24.8]} 55. Nxe7+ {[%clk 0:00:23.2]} 55... Kh8 {[%clk
0:00:16.4]} 56. Ng6+ {[%clk 0:00:23.9]} 56... Kg8 {[%clk 0:00:17.6]} 57. Rxe8+
{[%clk 0:00:23.9]} 1-0

[Event "*** Titled Tuesday 3|2 Blitz"]
[Site "Chess.com"]
[Date "2017.03.07"]
[Round "1"]
[White "JaimeSantosLatasa"]
[Black "Mepetmepe"]
[Result "1/2-1/2"]
[WhiteElo "2598"]
[BlackElo "2337"]
[TimeControl "180+2"]
[EndTime "13:09:51 PST"]
[Termination "Game drawn by agreement"]

1. c4 {[%clk 0:03:02]} 1... c6 {[%clk 0:03:00.3]} 2. Nf3 {[%clk 0:03:02.5]} 2...
d5 {[%clk 0:03:02.2]} 3. e3 {[%clk 0:03:04.4]} 3... Nf6 {[%clk 0:03:03.4]} 4.
Nc3 {[%clk 0:03:06.1]} 4... e6 {[%clk 0:03:04.1]} 5. b3 {[%clk 0:03:06.2]} 5...
Nbd7 {[%clk 0:03:04.8]} 6. Qc2 {[%clk 0:03:07.1]} 6... Bd6 {[%clk 0:03:05.2]} 7.
Bb2 {[%clk 0:03:08]} 7... O-O {[%clk 0:03:06.6]} 8. Rg1 {[%clk 0:03:09.4]} 8...
e5 {[%clk 0:03:04.9]} 9. cxd5 {[%clk 0:03:10.1]} 9... cxd5 {[%clk 0:03:05.9]}
10. Nb5 {[%clk 0:03:11.2]} 10... Bb8 {[%clk 0:03:05.8]} 11. Ba3 {[%clk
0:03:11.8]} 11... Re8 {[%clk 0:03:05.9]} 12. Nd6 {[%clk 0:03:12.5]} 12... Bxd6
{[%clk 0:03:06.4]} 13. Bxd6 {[%clk 0:03:14.4]} 13... d4 {[%clk 0:03:03.6]} 14.
Bc4 {[%clk 0:03:05.1]} 14... dxe3 {[%clk 0:02:58.5]} 15. dxe3 {[%clk 0:03:04.9]}
15... b5 {[%clk 0:02:36.8]} 16. Be2 {[%clk 0:02:50.1]} 16... Bb7 {[%clk
0:02:28.8]} 17. Rd1 {[%clk 0:02:49.6]} 17... Qb6 {[%clk 0:02:26.1]} 18. Bc7
{[%clk 0:02:38]} 18... Rac8 {[%clk 0:02:16.7]} 19. Rc1 {[%clk 0:02:25.8]} 19...
Qa6 {[%clk 0:01:25.1]} 20. Qf5 {[%clk 0:01:29.2]} 20... Rxc7 {[%clk 0:01:19.7]}
21. Rxc7 {[%clk 0:01:27.6]} 21... Qa5+ {[%clk 0:01:20.9]} 22. Kf1 {[%clk
0:01:28.7]} 22... Qxc7 {[%clk 0:01:22]} 23. g4 {[%clk 0:01:30]} 23... Be4 {[%clk
0:01:14.2]} 24. Qg5 {[%clk 0:01:30]} 24... Qc6 {[%clk 0:01:14.3]} 25. Ne1 {[%clk
0:01:30.4]} 25... b4 {[%clk 0:00:54.1]} 26. Qh4 {[%clk 0:01:30.1]} 26... Rc8
{[%clk 0:00:44.9]} 27. g5 {[%clk 0:01:31.1]} 27... Ne8 {[%clk 0:00:45.5]} 28. f3
{[%clk 0:01:27.3]} 28... Bf5 {[%clk 0:00:43.7]} 29. Qxb4 {[%clk 0:01:27.2]}
29... Nc5 {[%clk 0:00:41.4]} 30. h4 {[%clk 0:01:26]} 30... Nd6 {[%clk
0:00:38.6]} 31. h5 {[%clk 0:01:24.3]} 31... Ne6 {[%clk 0:00:37.5]} 32. h6 {[%clk
0:01:24.4]} 32... Bg6 {[%clk 0:00:36.6]} 33. hxg7 {[%clk 0:01:23.5]} 33... Nxg7
{[%clk 0:00:38.5]} 34. Kf2 {[%clk 0:01:22.1]} 34... Ngf5 {[%clk 0:00:39.7]} 35.
Nd3 {[%clk 0:01:22.3]} 35... e4 {[%clk 0:00:38.8]} 36. Rc1 {[%clk 0:01:22.2]}
36... Qd7 {[%clk 0:00:36]} 37. Ne5 {[%clk 0:01:22.1]} 37... Qe8 {[%clk
0:00:33.6]} 38. Ng4 {[%clk 0:01:22.9]} 38... Qd8 {[%clk 0:00:29]} 39. Nf6+
{[%clk 0:01:22.5]} 39... Kg7 {[%clk 0:00:27.1]} 40. Rxc8 {[%clk 0:01:22.6]}
40... Qxc8 {[%clk 0:00:27.7]} 41. fxe4 {[%clk 0:01:23.4]} 41... h6 {[%clk
0:00:15.6]} 42. exf5 {[%clk 0:01:20.5]} 42... Qxf5+ {[%clk 0:00:17.5]} 43. Qf4
{[%clk 0:01:21.4]} 43... hxg5 {[%clk 0:00:15.6]} 44. Qxf5 {[%clk 0:01:22.5]}
44... Bxf5 {[%clk 0:00:15.4]} 45. Nd5 {[%clk 0:01:23.4]} 45... Ne4+ {[%clk
0:00:15.7]} 46. Ke1 {[%clk 0:01:24.1]} 46... Be6 {[%clk 0:00:15.6]} 47. Nb4
{[%clk 0:01:24]} 47... f5 {[%clk 0:00:13.3]} 48. Nc6 {[%clk 0:01:24.4]} 48...
Nc3 {[%clk 0:00:11.1]} 49. Nd4 {[%clk 0:01:25.3]} 49... Kf6 {[%clk 0:00:11.2]}
50. a4 {[%clk 0:01:25]} 50... Nxe2 {[%clk 0:00:11.6]} 51. Kxe2 {[%clk
0:01:26.9]} 51... Bd5 {[%clk 0:00:13.4]} 52. b4 {[%clk 0:01:27.5]} 52... Ke5
{[%clk 0:00:14.3]} 53. Kf2 {[%clk 0:01:28.4]} 53... f4 {[%clk 0:00:15.2]} 54.
Nb5 {[%clk 0:01:29.5]} 54... a6 {[%clk 0:00:09.7]} 55. Nc7 {[%clk 0:01:29.4]}
55... Bc6 {[%clk 0:00:10.8]} 56. a5 {[%clk 0:01:29]} 56... Bb7 {[%clk
0:00:10.7]} 57. b5 {[%clk 0:01:29]} 57... axb5 {[%clk 0:00:11.2]} 58. Nxb5
{[%clk 0:01:30.6]} 58... g4 {[%clk 0:00:08.4]} 59. exf4+ {[%clk 0:01:30.9]}
59... Kxf4 {[%clk 0:00:09.2]} 60. Nd6 {[%clk 0:01:31.5]} 60... g3+ {[%clk
0:00:10.7]} 61. Kg1 {[%clk 0:01:32.1]} 61... Ba6 {[%clk 0:00:09.9]} 62. Ne8
{[%clk 0:01:32.2]} 62... Ke5 {[%clk 0:00:10.4]} 63. Nc7 {[%clk 0:01:32.9]} 63...
Bb7 {[%clk 0:00:11]} 64. a6 {[%clk 0:01:33.8]} 64... Bxa6 {[%clk 0:00:12]} 65.
Nxa6 {[%clk 0:01:35.7]} 65... g2 {[%clk 0:00:12.9]} 66. Nb4 {[%clk 0:01:36.3]}
66... Kd4 {[%clk 0:00:13.5]} 67. Nc6+ {[%clk 0:01:37]} 67... Kc5 {[%clk
0:00:14.6]} 68. Ne7 {[%clk 0:01:38.9]} 68... Kd6 {[%clk 0:00:15.9]} 69. Ng6
{[%clk 0:01:40.8]} 69... Ke6 {[%clk 0:00:17.1]} 70. Nh4 {[%clk 0:01:42.7]} 70...
Ke5 {[%clk 0:00:18]} 1/2-1/2

[Event "*** Titled Tuesday 3|2 Blitz"]
[Site "Chess.com"]
[Date "2017.03.07"]
[Round "1"]
[White "Chesstrainer1"]
[Black "Dr-Bassem"]
[Result "0-1"]
[WhiteElo "2337"]
[BlackElo "2624"]
[TimeControl "180+2"]
[EndTime "13:10:03 PST"]
[Termination "Dr-Bassem won by resignation"]

1. Nf3 {[%clk 0:03:01.9]} 1... f5 {[%clk 0:02:56.8]} 2. d3 {[%clk 0:03:01.8]}
2... Nc6 {[%clk 0:02:56.5]} 3. d4 {[%clk 0:02:59.4]} 3... Nf6 {[%clk 0:02:55.6]}
4. d5 {[%clk 0:02:56.8]} 4... Nb4 {[%clk 0:02:50.4]} 5. c4 {[%clk 0:02:57.4]}
5... c6 {[%clk 0:02:46.3]} 6. a3 {[%clk 0:02:50.5]} 6... Na6 {[%clk 0:02:39.5]}
7. b4 {[%clk 0:02:42.7]} 7... g6 {[%clk 0:02:33.7]} 8. Nc3 {[%clk 0:02:33.1]}
8... Bg7 {[%clk 0:02:34.9]} 9. Bb2 {[%clk 0:02:33.6]} 9... O-O {[%clk 0:02:31]}
10. Rc1 {[%clk 0:02:32]} 10... Nc7 {[%clk 0:02:28.1]} 11. Qb3 {[%clk 0:02:30.9]}
11... d6 {[%clk 0:02:04.2]} 12. e3 {[%clk 0:02:27.6]} 12... e5 {[%clk
0:02:04.9]} 13. dxe6 {[%clk 0:02:23.9]} 13... Bxe6 {[%clk 0:02:05]} 14. Ng5
{[%clk 0:02:24.8]} 14... Bd7 {[%clk 0:02:04.9]} 15. h4 {[%clk 0:02:23.6]} 15...
h6 {[%clk 0:02:05.1]} 16. Nh3 {[%clk 0:02:24.6]} 16... Be6 {[%clk 0:02:05.2]}
17. Nf4 {[%clk 0:02:25.5]} 17... Bf7 {[%clk 0:01:47.3]} 18. Bd3 {[%clk
0:02:18.8]} 18... d5 {[%clk 0:01:29.4]} 19. h5 {[%clk 0:02:14.7]} 19... Nxh5
{[%clk 0:01:13.7]} 20. Nxh5 {[%clk 0:01:58.8]} 20... gxh5 {[%clk 0:01:15.6]} 21.
g3 {[%clk 0:02:00.3]} 21... d4 {[%clk 0:01:00.8]} 22. Nd1 {[%clk 0:01:53.5]}
22... dxe3 {[%clk 0:00:23.4]} 23. Bxg7 {[%clk 0:01:50.9]} 23... exf2+ {[%clk
0:00:22]} 24. Kxf2 {[%clk 0:01:52.2]} 24... Kxg7 {[%clk 0:00:23.9]} 25. Ne3
{[%clk 0:01:53.6]} 25... Bg6 {[%clk 0:00:23.9]} 26. Qc3+ {[%clk 0:01:51.1]}
26... Qf6 {[%clk 0:00:21.5]} 27. Ng2 {[%clk 0:01:47.7]} 27... Ne6 {[%clk
0:00:20.4]} 28. Rhe1 {[%clk 0:01:45.9]} 28... Ng5 {[%clk 0:00:17.7]} 29. Nf4
{[%clk 0:01:38.2]} 29... Qxc3 {[%clk 0:00:12]} 30. Rxc3 {[%clk 0:01:39.6]} 30...
Rae8 {[%clk 0:00:13]} 31. Rcc1 {[%clk 0:01:25.5]} 31... Kf6 {[%clk 0:00:10.3]}
32. b5 {[%clk 0:01:25]} 32... Rxe1 {[%clk 0:00:09.8]} 33. Rxe1 {[%clk
0:01:25.5]} 33... Rd8 {[%clk 0:00:10.1]} 34. bxc6 {[%clk 0:01:24.6]} 34... bxc6
{[%clk 0:00:10.8]} 35. Rb1 {[%clk 0:01:26]} 35... Ne6 {[%clk 0:00:10.2]} 36.
Nxe6 {[%clk 0:01:24.1]} 36... Rxd3 {[%clk 0:00:09.6]} 37. Nf4 {[%clk 0:01:24.3]}
37... Rxa3 {[%clk 0:00:10.4]} 38. Rb7 {[%clk 0:01:25.1]} 38... Bf7 {[%clk
0:00:11]} 39. Rc7 {[%clk 0:01:25.5]} 39... Ra6 {[%clk 0:00:12.1]} 40. c5 {[%clk
0:01:26.2]} 40... h4 {[%clk 0:00:11.4]} 41. gxh4 {[%clk 0:01:26.1]} 41... Bc4
{[%clk 0:00:10.9]} 42. Rh7 {[%clk 0:01:25.7]} 42... Ke5 {[%clk 0:00:12.2]} 43.
Ng6+ {[%clk 0:01:25.7]} 43... Ke4 {[%clk 0:00:12.4]} 44. Rxh6 {[%clk 0:01:25.6]}
44... f4 {[%clk 0:00:11.9]} 45. Ne7 {[%clk 0:01:17.6]} 45... Ra2+ {[%clk
0:00:11.8]} 46. Ke1 {[%clk 0:01:18.6]} 46... f3 {[%clk 0:00:11.3]} 47. Rf6
{[%clk 0:01:16.4]} 47... Re2+ {[%clk 0:00:09.5]} 48. Kd1 {[%clk 0:01:17.4]}
48... f2 {[%clk 0:00:09.8]} 49. Nxc6 {[%clk 0:01:14]} 49... Re1+ {[%clk
0:00:10.1]} 50. Kd2 {[%clk 0:01:15.2]} 50... f1=Q {[%clk 0:00:11.1]} 51. Rxf1
{[%clk 0:01:16.8]} 51... Rxf1 {[%clk 0:00:12.7]} 52. Nxa7 {[%clk 0:01:18]} 52...
Bd5 {[%clk 0:00:11]} 53. h5 {[%clk 0:01:13]} 53... Kd4 {[%clk 0:00:10.7]} 54. c6
{[%clk 0:01:13.5]} 54... Rf2+ {[%clk 0:00:11]} 55. Ke1 {[%clk 0:01:13.1]} 55...
Rc2 {[%clk 0:00:10.4]} 56. c7 {[%clk 0:01:13]} 56... Bb7 {[%clk 0:00:10.1]} 57.
h6 {[%clk 0:01:12.8]} 57... Rc1+ {[%clk 0:00:08.3]} 58. Kd2 {[%clk 0:01:13.1]}
58... Rh1 {[%clk 0:00:09.3]} 59. c8=Q {[%clk 0:01:07.9]} 59... Rh2+ {[%clk
0:00:09.7]} 60. Kc1 {[%clk 0:01:06.9]} 60... Bxc8 {[%clk 0:00:11.6]} 61. Nxc8
{[%clk 0:01:08.2]} 61... Rxh6 {[%clk 0:00:12.4]} 62. Nd6 {[%clk 0:01:09.5]}
62... Rxd6 {[%clk 0:00:12.9]} 63. Kd2 {[%clk 0:01:10.4]} 63... Rg6 {[%clk
0:00:13.1]} 0-1

[Event "*** Titled Tuesday 3|2 Blitz"]
[Site "Chess.com"]
[Date "2017.03.07"]
[Round "1"]
[White "MatBobula"]
[Black "SavelijTartakover"]
[Result "0-1"]
[WhiteElo "2280"]
[BlackElo "2558"]
[TimeControl "180+2"]
[EndTime "13:10:03 PST"]
[Termination "SavelijTartakover won by resignation"]

1. d4 {[%clk 0:03:02]} 1... Nf6 {[%clk 0:02:59.4]} 2. c4 {[%clk 0:03:02.5]} 2...
g6 {[%clk 0:03:00.2]} 3. Nf3 {[%clk 0:03:03]} 3... Bg7 {[%clk 0:03:01]} 4. g3
{[%clk 0:03:02.1]} 4... O-O {[%clk 0:03:02.2]} 5. Bg2 {[%clk 0:03:03.2]} 5... d6
{[%clk 0:03:02]} 6. O-O {[%clk 0:03:04.2]} 6... Nc6 {[%clk 0:03:03.5]} 7. Nc3
{[%clk 0:03:04.5]} 7... Bg4 {[%clk 0:02:59.7]} 8. h3 {[%clk 0:03:01.8]} 8...
Bxf3 {[%clk 0:02:59.6]} 9. Bxf3 {[%clk 0:03:03.7]} 9... Nd7 {[%clk 0:03:00.3]}
10. e3 {[%clk 0:03:01.4]} 10... e5 {[%clk 0:03:00.6]} 11. d5 {[%clk 0:02:58.4]}
11... Ne7 {[%clk 0:03:01.1]} 12. e4 {[%clk 0:02:54.3]} 12... f5 {[%clk
0:03:01.4]} 13. Bg2 {[%clk 0:02:54.9]} 13... Nf6 {[%clk 0:02:59.9]} 14. Bg5
{[%clk 0:02:46.5]} 14... h6 {[%clk 0:02:58.4]} 15. Bd2 {[%clk 0:02:10.5]} 15...
g5 {[%clk 0:02:52.1]} 16. f4 {[%clk 0:02:08.4]} 16... exf4 {[%clk 0:02:44.6]}
17. gxf4 {[%clk 0:02:07.4]} 17... gxf4 {[%clk 0:02:45.3]} 18. Bxf4 {[%clk
0:01:55.9]} 18... fxe4 {[%clk 0:02:45.3]} 19. Nxe4 {[%clk 0:01:55.9]} 19... Ng6
{[%clk 0:02:45.8]} 20. Bg3 {[%clk 0:01:35.2]} 20... Nxe4 {[%clk 0:02:42.1]} 21.
Bxe4 {[%clk 0:01:34.2]} 21... Qg5 {[%clk 0:02:40.5]} 22. Qg4 {[%clk 0:01:25.9]}
22... Qxg4 {[%clk 0:02:34.3]} 23. hxg4 {[%clk 0:01:27.8]} 23... Ne5 {[%clk
0:02:35.5]} 24. Bxe5 {[%clk 0:01:22.4]} 24... Bxe5 {[%clk 0:02:35.8]} 25. Rab1
{[%clk 0:01:23.5]} 25... Rxf1+ {[%clk 0:02:32.1]} 26. Rxf1 {[%clk 0:01:21.7]}
26... Bxb2 {[%clk 0:02:30.6]} 27. Rb1 {[%clk 0:01:21.1]} 27... Bd4+ {[%clk
0:02:30]} 28. Kg2 {[%clk 0:01:22.6]} 28... Re8 {[%clk 0:02:28.5]} 29. Kf3 {[%clk
0:01:19.4]} 29... b6 {[%clk 0:02:26.1]} 30. Rd1 {[%clk 0:01:16.8]} 30... Bf6
{[%clk 0:02:15.9]} 31. Bf5 {[%clk 0:01:15.5]} 31... Re5 {[%clk 0:02:07]} 32.
Be6+ {[%clk 0:01:15.8]} 32... Kg7 {[%clk 0:02:07.8]} 33. Rf1 {[%clk 0:01:11.7]}
33... Bg5 {[%clk 0:02:03.6]} 34. Rf2 {[%clk 0:01:12.2]} 34... Kg6 {[%clk
0:02:01.3]} 35. Re2 {[%clk 0:01:11.5]} 35... Kf6 {[%clk 0:01:59.5]} 36. Re4
{[%clk 0:01:10.2]} 36... Bc1 {[%clk 0:01:47.6]} 37. Bg8 {[%clk 0:01:03.7]} 37...
Rg5 {[%clk 0:01:42.3]} 38. Re8 {[%clk 0:00:58]} 38... h5 {[%clk 0:01:34.1]} 39.
gxh5 {[%clk 0:00:52.3]} 39... Rxh5 {[%clk 0:01:36]} 40. Rc8 {[%clk 0:00:47.9]}
40... Rh3+ {[%clk 0:01:27.4]} 41. Ke2 {[%clk 0:00:45.6]} 41... Ra3 {[%clk
0:01:25.4]} 42. Rxc7 {[%clk 0:00:45.9]} 42... Rxa2+ {[%clk 0:01:26.2]} 43. Kd3
{[%clk 0:00:47.2]} 43... Bf4 {[%clk 0:01:20.9]} 44. Rf7+ {[%clk 0:00:46.8]}
44... Kg5 {[%clk 0:01:18.8]} 45. Rf8 {[%clk 0:00:40.8]} 45... Be5 {[%clk
0:01:14.7]} 46. Be6 {[%clk 0:00:41.4]} 46... a5 {[%clk 0:01:12.7]} 47. Bd7
{[%clk 0:00:40.4]} 47... a4 {[%clk 0:01:10.3]} 48. Rf5+ {[%clk 0:00:29.9]} 48...
Kg6 {[%clk 0:01:08.6]} 49. Rf8 {[%clk 0:00:29.9]} 49... a3 {[%clk 0:01:08.2]}
50. Ra8 {[%clk 0:00:27.6]} 50... Ra1 {[%clk 0:01:08.6]} 51. Ba4 {[%clk
0:00:21.3]} 51... Rh1 {[%clk 0:00:42.8]} 52. Bc2 {[%clk 0:00:14.7]} 52... Rh3+
{[%clk 0:00:40.6]} 53. Kd2+ {[%clk 0:00:15]} 53... Kf6 {[%clk 0:00:33.9]} 54.
Bd3 {[%clk 0:00:16.1]} 54... Rh2+ {[%clk 0:00:32.5]} 55. Be2 {[%clk 0:00:16.3]}
55... Bb2 {[%clk 0:00:33.5]} 56. Ra6 {[%clk 0:00:16.1]} 56... Ke5 {[%clk
0:00:34.1]} 57. Kd3 {[%clk 0:00:16.8]} 57... Rh3+ {[%clk 0:00:34.6]} 58. Kc2
{[%clk 0:00:17]} 58... Kd4 {[%clk 0:00:35.7]} 59. Rxb6 {[%clk 0:00:16]} 59...
Rh2 {[%clk 0:00:35]} 0-1